Workbook

Sheet Cover
D3: Amendments made on 6 August 2014.
D4: Click here for details.
A8: Distribution Network Service Provider
A9: Annual reporting template
A11: This template is to be used by a DNSP to fulfil its annual reporting obligations to the AER.
A13: Colour coding of input sheets:
A14: Dark blue - Headings
A15: Yellow - Input cells
A16: Grey - No inputs required
A18: Leave coloured cells blank if no information exists - PLEASE DO NOT ENTER TEXT unless specifically requested to do so.
A19: All dollar amounts are to be in nominal terms.
A22: DNSP - trading name: | C22: SA Power Networks
A24: DNSP - Australian business number: | C24: 13 332 330 749
A26: Reporting year: | C26: 2014-15
A31: Business address | B31: Address | D31: 1 Anzac Highway
B32: Suburb | D32: Keswick
C33: State | D33: SA | E33: Postcode | F33: 5018
A35: Postal address | B35: Address | D35: GPO Box 77
B36: Suburb | D36: Adelaide
C37: State | D37: SA | E37: Postcode | F37: 5001
A40: Contact name/s | B40: Wayne Lissner
A41: Contact phone/s | B41: (08) 8404 5391
A42: Contact email address/s | B42: Wayne.Lissner@sapowernetworks.com.au

Sheet Contents
C3: Electricity DNSP Annual Reporting Template
C4: Table of contents
C7: Cover sheet | D7: 8. Maintenance | E7: 16. Avoided cost payments
C8: 1. Income statement | D8: 9. Maintenance overheads (deleted) | E8: 17. Alternative control & other
C9: 2. Balance sheet (deleted) | D9: 10. Operating costs | E9: 18. EBSS
C10: 3. Cashflows statement (deleted) | D10: 11. Operating overheads (deleted) | E10: 19. Jurisdictional scheme
C11: 4. Changes in equity (deleted) | D11: 12. Cost categories (deleted) | E11: 20. DMIS _ DMIA
C12: 5. Capex | D12: 13. Opex step change (deleted) | E12: 21. Self insurance
C13: 6. Capex overheads (deleted) | D13: 14. Provisions (deleted) | E13: 22. Change in accounting policy
C14: 7. Capex for tax depreciation | D14: 15. Overheads allocation (deleted)

Sheet 1. Income
B1: =Cover!C22 -> SA Power Networks
B2: Income Statement
B3: =Cover!C26 -> 2014-15
B5: This information is used to monitor revenues for each service classification. Elements of the information are used to calculate financial ratios, used for intra and inter-business comparison and the AER will also monitor and report on information such as dividend payment, tax payments, depreciation and profit.
B7: Table 1: Income statement
B9: SA Power Networks' comments in relation to Table 1
B10: SA Power Networks' regulatory reporting year (July to June) differs from its financial reporting year (January to December). Consequently, the statutory account numbers are derived
B11: based on the financial reports for the SA Power Networks Partnership for the year 1 January 2014 to 31 December 2014, the half year 1 January 2014 to 30 June 2014 and the half year
B12: 1 January 2015 to 30 June 2015.
B14: Revenue and expenditure have been disaggregated between service categories in accordance with the definitions of standard control services, alternative control services, negotiated
B15: distribution services, unregulated services and unallocated items as set out in the RIN and the AER's Distribution Determination.
B17: As defined in the AER's RIN, the Distribution business column represents the total of standard control services, alternative control services and negotiated distribution services.
B18: The Adjustments column represents the exclusion of unregulated services and unallocated items from the Audited statutory accounts totals in order to derive the totals for the
B19: Distribution business.
B21: All values in this statement represent statutory accounting values (Statutory P&L), i.e. Income statement before any regulatory adjustments.
B23: It is important to note that SA Power Networks perform a number of regulatory adjustments each year in order to produce a regulatory income statement (Regulatory P&L).
B24: Due to the materiality of these regulatory adjustments (which result in a $175 million increase in total operating costs relating to the Distribution Business), the Regulatory P&L results in
B25: a much lower and more accurate profit result for the regulated business service categories than is reported under the Statutory P&L.
B27: An example of one of the regulatory adjustments is an adjustment to negotiated distribution services costs of $74 million, reflecting the cost of deriving customer contribution revenue,
B28: which is considered an operating cost for regulatory purposes, but is capitalised for statutory accounting.
B30: SA Power Networks' Cost Allocation Method (which forms the basis for operating expenditure forecasts and actual costs in Template 8 and Template 10 is constructed on a
B31: post-regulatory adjustments basis in order to factor the impact of the regulatory adjustments.
B33: It is therefore misleading and inappropriate to use the information in Table 1 for any type of regulatory benchmarking purposes.
B35: Statutory Account code or reference to account code | C35: Description | D35: Audited statutory accounts | E35: Adjustments | F35: Distribution business | G35: Standard control services | H35: Alternative control services | I35: Negotiated services | J35: Unregulated services
H36: Metering
D37: $'000 nominal | E37: $'000 nominal | F37: $'000 nominal | G37: $'000 nominal | H37: $'000 nominal | I37: $'000 nominal | J37: $'000 nominal
C38: Distribution revenue | D38: =SUM(E38:F38) -> 997310.7986 | F38: =SUM(G38:I38) -> 997310.7986 | G38: ='[4]1 - Income'!$E$18 -> 928117.7986 | H38: ='[4]1 - Income'!$F$18 -> 27408 | I38: ='[4]1 - Income'!$G$18 -> 41785
C39: TUOS revenue | D39: =SUM(E39:F39) -> 264106.2014 | F39: =SUM(G39:I39) -> 264106.2014 | G39: ='[4]1 - Income'!$E$19 -> 264106.2014
C40: Cross boundary revenue | D40: 0 | F40: 0
C41: Profit from sale of fixed assets | D41: 0 | F41: 0
C42: Customer contributions | D42: 80458 | F42: 80458 | I42: ='[4]1 - Income'!$G$22 -> 80458
C43: Interest income | D43: 3846 | E43: ='[4]1 - Income'!$C$23 -> 3846 | F43: 0
C44: Other revenue | D44: 182500 | E44: ='[4]1 - Income'!$C$24 -> 182500 | F44: 0 | J44: ='[4]1 - Income'!$H$24 -> 182500
C45: Total revenue | D45: =SUM(D38:D44) -> 1528221 | E45: 186346 | F45: 1341875 | G45: 1192224 | H45: 27408 | I45: =SUM(I38:I44) -> 122243 | J45: 182500
C46: TUOS costs | D46: 264106 | F46: 264106 | G46: ='[4]1 - Income'!$E$26 -> 264106
C47: Cross boundary charges | D47: 0 | F47: 0
C48: Maintenance | D48: 126363 | F48: 126363 | G48: ='[4]1 - Income'!$E$28 -> 124258 | H48: ='[4]1 - Income'!$F$28 -> 1093 | I48: ='[4]1 - Income'!$G$28 -> 1012
C49: Operating expenses | D49: 264694 | E49: ='[4]1 - Income'!$C$29 -> 146768 | F49: 117926 | G49: ='[4]1 - Income'!$E$29 -> 82082 | H49: ='[4]1 - Income'!$F$29 -> 4701 | I49: ='[4]1 - Income'!$G$29 -> 31143 | J49: ='[4]1 - Income'!$H$29 -> 146768
C50: Depreciation | D50: 200881 | E50: ='[4]1 - Income'!$C$30 -> 8248 | F50: 192633 | G50: ='[4]1 - Income'!$E$30 -> 184158 | H50: ='[4]1 - Income'!$F$30 -> 3066 | I50: ='[4]1 - Income'!$G$30 -> 5409 | J50: ='[4]1 - Income'!$H$30 -> 1070
C51: Finance charges | D51: 281211 | E51: ='[4]1 - Income'!$C$31 -> 281211 | F51: 0
C52: Loss from sale of fixed assets | D52: 993 | F52: 993 | G52: ='[4]1 - Income'!$E$32 -> 993
C53: Impairment losses (nature of the impairment loss) | D53: 0 | F53: 0
C54: Other | D54: 0 | F54: 0
C55: Profit before tax (PBT) | D55: =D45-SUM(D46:D54) -> 389973 | E55: -249881 | F55: 639854 | G55: 536627 | H55: 18548 | I55: =I45-SUM(I46:I54) -> 84679 | J55: 34662
C56: Income tax expenses /(Benefit) | D56: -42 | E56: ='[4]1 - Income'!$C$36 -> -42 | F56: 0
C57: Profit after tax | D57: =D55-D56 -> 390015 | E57: -249839 | F57: 639854 | G57: 536627 | H57: 18548 | I57: =I55-I56 -> 84679 | J57: 34662

Sheet 5. Capex
B1: =Cover!C22 -> SA Power Networks
B2: Capex - including overheads
B3: =Cover!C26 -> 2014-15
B5: This information is necessary for monitoring capex and will be used to inform the AER's assessment of capex and its underlying drivers at the next reset. It will also be used to assist in any comparative analysis undertaken by the AER within the current and future regulatory control periods.
B7: Table 1: Standard Control Service by Reason
B9: SA Power Networks' comments in relation to Table 1
B10: Capital expenditure has been allocated to the standard control services in accordance with SA Power Networks'
B11: Cost Allocation Method.
B13: Costs reported in the table are on an "as incurred" basis.
B15: Forecast values have been escalated to nominal by a CPI adjustment of 12.18%, reflecting the change in the index for the 5-year
B16: period ended 31 March 2015.
B18: Forecast and actual values in the table are both reported net of Capital Contributions.
B20: The forecast value relating to Superannuation in the AER's Final Determination has been re-allocated based on pro-rata forecast
B21: labour by expenditure category. This is in order to replicate the actual distribution of these superannuation costs by expenditure
B22: category.
B24: Note there is an offsetting difference in the reported forecast values for system and non-system assets of $6.601 million between
B25: Table 1: Standard Control Service by Reason and Table 3: Capex by Asset Class expenditure by purpose. This is due to an
B26: inconsistent classification of assets which made up the Other system assets category in the forecast submission. In Table 1:
B27: Standard Control Service by Reason, the forecast costs for these assets were allocated between system asset categories based
B28: on the primary expenditure purpose for these costs (being the Reliability and quality of service enhancement, and the Environmental,
B29: safety, statutory obligations categories), while in Table 3: Capex by Asset Class, these assets were allocated between non-system
B30: asset categories based on the nature of the forecast costs (being the Buildings, IT, and Plant & Tools/Office furniture categories).
B32: The actual value against Other in System Assets represents the Superannuation adjustment to System assets capital as per the
B33: Cost Allocation Method. A Superannuation adjustment of -$4.034M has also been included as part of the reported total for
B34: Non-system assets capital.
B36: Table 1: Summary View
C38: Forecast | D38: Actuals | E38: Difference
B39: System assets | C39: $'000 nominal | D39: $'000 nominal
B40: Asset renewal/replacement | C40: =C62 -> 51305 | D40: =D62 -> 77661 | E40: =(D40-C40)/C40 -> 0.5137121138
B41: Growth (demand related) | C41: =C67 -> 156606 | D41: =D67 -> 100100 | E41: -0.3608163161
B42: Reliability and quality of service enhancement | C42: =C71 -> 15036 | D42: =D71 -> 39494 | E42: 1.626629423
B43: Environmental, safety, statutory obligations | C43: =C76 -> 38771 | D43: =D76 -> 27054 | E43: -0.302210415
B44: Other (please explain purpose) | C44: =C79 -> 0 | D44: =D79 -> -14219
B45: Sub-total | C45: =SUM(C40:C44) -> 261718 | D45: =SUM(D40:D44) -> 230090 | E45: -0.1208476299
B46: Non-system assets
B47: Non-system assets | C47: =C89 -> 88266 | D47: =D89 -> 79153 | E47: =(D47-C47)/C47 -> -0.1032447375
B48: Total (system and non system assets) | C48: =SUM(C45,C47) -> 349984 | D48: =SUM(D45,D47) -> 309243 | E48: =(D48-C48)/C48 -> -0.1164081787
B50: SA Power Networks' comments in relation to Table 1
B51: In order to provide greater clarity around the underlying drivers for the Capex variances reported in Table 1: Summary View (above),
B52: SA Power Networks have inserted a new table below (Table 1: Detailed View) that provides a more detailed breakdown of the
B53: summarised categories. In providing material difference explanations in Table 2 for the variances reported in Table 1: Summary View,
B54: we are then able to point to relevant categories in Table 1: Detailed View to further support the explanations.
B56: Table 1: Detailed View
C58: Forecast | D58: Actuals | E58: Difference
B59: System assets | C59: $'000 nominal | D59: $'000 nominal
B60: Asset renewal/replacement
B61: Asset replacement and refurbishment | C61: =ROUND('[5]2014-15 Actual'!$H$13,0) -> 51305 | D61: ='[6]28-CAPEX'!$D$18 -> 77661 | E61: =(D61-C61)/C61 -> 0.5137121138
B62: Sub-total | C62: =SUM(C61) -> 51305 | D62: =SUM(D61) -> 77661 | E62: =(D62-C62)/C62 -> 0.5137121138
B63: Growth (demand related)
B64: Capacity - reinforcements and upgrades | C64: =ROUND('[5]2014-15 Actual'!$H$17,0) -> 121178 | D64: ='[6]28-CAPEX'!$D$11 -> 64540 | E64: =(D64-C64)/C64 -> -0.4673950717
B65: Customer connections (gross) | C65: =ROUND('[5]2014-15 Actual'!$H$18,0) -> 161923 | D65: ='[6]28-CAPEX'!$D$12 -> 101154 | E65: =(D65-C65)/C65 -> -0.3752956652
B66: Capital contributions | C66: =ROUND('[5]2014-15 Actual'!$H$19,0) -> -126495 | D66: ='[6]28-CAPEX'!$D$13 -> -65594 | E66: =(D66-C66)/C66 -> -0.4814498597
B67: Sub-total | C67: =SUM(C64:C66) -> 156606 | D67: =SUM(D64:D66) -> 100100 | E67: =(D67-C67)/C67 -> -0.3608163161
B68: Reliability and quality of service enhancement
B69: Reliability | C69: =ROUND('[5]2014-15 Actual'!$H$23,0) -> 5177 | D69: ='[6]28-CAPEX'!$D$20 -> 5467 | E69: =(D69-C69)/C69 -> 0.05601699826
B70: Security of supply | C70: =ROUND('[5]2014-15 Actual'!$H$24,0) -> 9859 | D70: ='[6]28-CAPEX'!$D$19 -> 34027 | E70: =(D70-C70)/C70 -> 2.451364236
B71: Sub-total | C71: =SUM(C69:C70) -> 15036 | D71: =SUM(D69:D70) -> 39494 | E71: =(D71-C71)/C71 -> 1.626629423
B72: Environmental, safety, statutory obligations
B73: Environmental | C73: =ROUND('[5]2014-15 Actual'!$H$28,0) -> 3484 | D73: ='[6]28-CAPEX'!$D$26 -> 1719 | E73: =(D73-C73)/C73 -> -0.5066016073
B74: Safety | C74: =ROUND('[5]2014-15 Actual'!$H$29,0) -> 27117 | D74: ='[6]28-CAPEX'!$D$25 -> 17964 | E74: =(D74-C74)/C74 -> -0.3375373382
B75: Network other - PLEC | C75: =ROUND('[5]2014-15 Actual'!$H$30,0) -> 8170 | D75: ='[6]28-CAPEX'!$D$27 -> 7371 | E75: =(D75-C75)/C75 -> -0.09779681763
B76: Sub-total | C76: =SUM(C73:C75) -> 38771 | D76: =SUM(D73:D75) -> 27054 | E76: =(D76-C76)/C76 -> -0.302210415
B77: Other
B78: Superannuation | C78: =ROUND('[5]2014-15 Actual'!$H$34,0) -> 0 | D78: ='[6]28-CAPEX'!$D$45 -> -14219 | E78: =(D78-C78)/C78 -> 
B79: Sub-total | C79: =SUM(C78) -> 0 | D79: =SUM(D78) -> -14219 | E79: =(D79-C79)/C79 -> 
B80: Sub-total System assets | C80: =SUM(C62,C67,C71,C76,C79) -> 261718 | D80: =SUM(D62,D67,D71,D76,D79) -> 230090 | E80: =(D80-C80)/C80 -> -0.1208476299
B81: Non-system assets
B82: Information technology | C82: =ROUND('[5]2014-15 Actual'!$H$41,0) -> 45057 | D82: ='[6]28-CAPEX'!$D$34 -> 44696 | E82: =(D82-C82)/C82 -> -0.008012073596
B83: Property (includes Easements) | C83: =ROUND('[5]2014-15 Actual'!$H$42,0) -> 12795 | D83: ='[6]28-CAPEX'!$D$35 -> 4639 | E83: -0.6374364986
B84: Fleet | C84: =(ROUND('[5]2014-15 Actual'!$H$43,0)+(ROUND('[5]2014-15 Actual'!$H$44,0))) -> 23429 | D84: ='[6]28-CAPEX'!$D$36 -> 24061 | E84: 0.02697511631
B85: Plant and tools | C85: =ROUND('[5]2014-15 Actual'!$H$45,0) -> 6985 | D85: ='[6]28-CAPEX'!$D$37 -> 3259 | E85: -0.5334287759
B86: Equity raising costs | C86: =ROUND('[5]2014-15 Actual'!$H$47,0) -> 0 | D86: ='[6]28-CAPEX'!$D$44 -> 0
B87: Superannuation | C87: =ROUND('[5]2014-15 Actual'!$H$48,0) -> 0 | D87: ='[6]28-CAPEX'!$D$38 -> -4034
B88: Non-network other | C88: =ROUND('[5]2014-15 Actual'!$H$46,0) -> 0 | D88: ='[6]28-CAPEX'!$D$39 -> 6532
B89: Sub-total Non-system assets | C89: =SUM(C82:C88) -> 88266 | D89: =SUM(D82:D88) -> 79153 | E89: -0.1032447375
B90: Total (system and non system assets) | C90: =SUM(C80,C89) -> 349984 | D90: =SUM(D80,D89) -> 309243 | E90: -0.1164081787
B92: Table 2: Material Difference Explanation
B94: Note: all material differences identified in table 1 are to be explained in table 2.
C96: Explanation
B97: System assets
B98: Asset renewal/replacement | C98: Expenditure continues to be higher than that allowed by the AER, resulting from the need to invest additional amounts to maintain the safety and reliability of the network. The work undertaken in the 2010-15 regulatory control period was primarily limited to high priority risk assets associated with an increasing volume of identified asset defects. There will need to be additional works undertaken in the 2015-20 regulatory period to manage our risk in accordance with our Safety, Reliability, Maintenance and Technical Management Plan.
B99: Growth (demand related) | C99: Growth expenditure was lower than forecast due to capacity related expenditure (-$57 million) again being below expectations. This was due to a continuation of lower load growth than anticipated since 2011, primarily as a result of uncontrollable external factors such as economic downturn and the continued take up of embedded PV generation, which has resulted in the efficient deferral of projects. Where possible, more efficient solutions have also been implemented to reduce costs. Constrained economic conditions have also continued to result in lower customer connection activity than forecast in customer funded works and consequently lower capital contributions.
B100: Reliability and quality of service enhancements | C100: Expenditure is above forecast due to higher than forecast spending in the Security of Supply category (+$24 million). Increased expenditure in the Security of Supply area primarily represents significant expenditure incurred during the year on SCADA / ADMS systems and other strategic projects (e.g. substation property security enhancements).
B101: Environmental, safety, statutory obligations | C101: Expenditure is below forecast due to lower than forecast spend in Safety (-$9 million), Environmental (-$2 million) and PLEC (-$1 million). Safety expenditure is below forecast levels mainly due to the delays incurred in implementing the Synagogue Place project due to equipment issues. Similarly, delays arose in ground level switchgear projects and the Mobile Radio Network upgrade, the latter due to the investigation of a more efficient opex solution. Environmental expenditure is lower than forecast primarily due to timing and classification of expenditure. Part of the environmental forecasts relate to an average expected expenditure on remediation works, which may not be incurred in any individual year. Further, environmental works are also often undertaken as part of larger asset replacement, customer or augmentation projects (such as firewalls), consequently some costs may appear in other expenditure categories. Expenditure on PLEC projects is slightly below forecast and represents timing differences associated with minor delays in commencing scheduled works.
B102: Other | C102: Reflects the regulatory adjustment for the difference between superannuation cash contributions and the accounting expense. As per SA Power Networks' approved Cost Allocation Method, superannuation is reported on a cash payments basis for regulatory reporting. Actual expenditure represents the portion of the regulatory adjustment pertaining to system assets. The forecast value is nil because the superannuation forecast from the AER's 2010-15 Final Determination has been re-allocated across expenditure categories based on pro-rata forecast labour by expenditure category in order to replicate the distribution of actual superannuation cost.
B103: Non-system assets
B104: Non-system assets | C104: Non-system assets expenditure was below forecast due to reduced Property (-$8 million) and Plant and tools (-$4 million) expenditure. During the period, a number of planned Property projects were deferred or alternative approaches adopted. These include: an increased number of leased properties where it was more cost-effective to lease rather than buy; delays in land acquisition and construction for depot enhancement in response to the downturn in outer metropolitan residential growth and difficulty in sourcing suitable properties; and capital works undertaken at St Marys and Morphett Vale depots to support delivery of services in the Southern metropolitan area together with the construction of a new depot at Seaford were deferred until housing development works planned for this growth area increase in line with original expectations. The lower than forecast spend in Plant and tools is also related to the delays in property acquisition, as a large component of the forecast relates to building fit-outs of newly acquired properties.
B106: Table 3: Capex by Asset Class
B108: SA Power Networks' comments in relation to Table 3
B109: Capital expenditure has been allocated to the standard control services in accordance with SA Power Networks'
B110: Cost Allocation Method.
B112: Costs reported against individual asset categories in the table are on an "as commissioned" basis. Information is reported on an
B113: as commissioned basis because SA Power Networks' asset accounting system (SAP) does not assign work in progress by asset
B114: category until the works are completed and settled against an asset. The Work in Progress (Net) categories under System assets
B115: and Non-system assets therefore reports the change in WIP balance for the regulatory year in order to reconcile net capital additions
B116: with the total incurred additions as reported in Table 1.
B118: Forecast values have been escalated to nominal by a CPI adjustment of 12.18%, reflecting the change in the index for the 5-year
B119: period ended 31 March 2015.
B121: The forecast value relating to Other system assets in the AER's Final Determination has been allocated by asset class based on
B122: expenditure purpose. This has had the effect of increasing the forecast values for IT, Buildings, and Plant & Tools/Office furniture.
C125: Forecast | D125: Actual | E125: Total
B126: Distribution | C126: $'000 nominal | D126: $'000 nominal
B127: System assets
B128: Sub-transmission lines | C128: =ROUND('[7]2 - Capex'!$B$97,0) -> 17083 | D128: ='[6]31-BS1 NA'!$D$13 -> 16234 | E128: =(D128-C128)/C128 -> -0.0496985307
B129: Distribution lines | C129: =ROUND('[7]2 - Capex'!$B$98,0) -> 161745 | D129: ='[6]31-BS1 NA'!$E$13 -> 74196 | E129: =(D129-C129)/C129 -> -0.5412779375
B130: Substations | C130: =ROUND('[7]2 - Capex'!$B$99,0) -> 111287 | D130: ='[6]31-BS1 NA'!$F$13 -> 82486 | E130: -0.2587993207
B131: Distribution transformers | C131: =ROUND('[7]2 - Capex'!$B$100,0) -> 13623 | D131: ='[6]31-BS1 NA'!$G$13 -> 10131 | E131: -0.2563312046
B132: LVS | C132: =ROUND('[7]2 - Capex'!$B$101,0)+1 -> 68254 | D132: ='[6]31-BS1 NA'!$H$13 -> 66339 | E132: -0.02805696369
B133: Communications | C133: =ROUND('[7]2 - Capex'!$B$102,0) -> 6260 | D133: ='[6]31-BS1 NA'!$I$13 -> 12014 | E133: 0.9191693291
B134: Capital Contributions | C134: =ROUND('[7]2 - Capex'!$B$118,0) -> -126495 | D134: ='[6]31-BS1 NA'!$L$14 -> -65594 | E134: -0.4814498597
B135: Substation Land | C135: =ROUND('[7]2 - Capex'!$B$104,0) -> 3360 | D135: ='[6]31-BS1 NA'!$J$13 -> 461 | E135: -0.862797619
B136: Work in Progress (net) | C136: 0 | D136: ='[6]31-BS1 NA'!$M$13-D148 -> 33823
B137: Sub-total | C137: =SUM(C128:C136) -> 255117 | D137: =SUM(D128:D136) -> 230090 | E137: -0.09810008741
B138: Non-System Assets
B139: Buildings | C139: =ROUND('[7]2 - Capex'!$B$106,0) -> 5644 | D139: ='[6]31-BS1 NA'!$E$28 -> 0 | E139: =(D139-C139)/C139 -> -1
B140: Land | C140: =ROUND('[7]2 - Capex'!$B$103,0) -> 0 | D140: ='[6]31-BS1 NA'!$D$28 -> 249 | E140: =(D140-C140)/C140 -> 
B141: Easements | C141: =ROUND('[7]2 - Capex'!$B$105,0) -> 949 | D141: ='[6]31-BS1 NA'!$K$13 -> 914 | E141: =(D141-C141)/C141 -> -0.03688092729
B142: Heavy vehicles | C142: =ROUND('[7]2 - Capex'!$B$110,0) -> 8962 | D142: ='[6]31-BS1 NA'!$F$28 -> 17918 | E142: 0.9993305066
B143: Light vehicles | C143: =ROUND('[7]2 - Capex'!$B$111,0) -> 14467 | D143: ='[6]31-BS1 NA'!$G$28 -> 5855 | E143: -0.5952858229
B144: IT | C144: =ROUND('[7]2 - Capex'!$B$112,0) -> 50331 | D144: ='[6]31-BS1 NA'!$H$28 -> 52409 | E144: 0.04128668216
B145: Office equipment | C145: =ROUND('[7]2 - Capex'!$B$113,0) -> 0 | D145: 0
B146: Plant & tools/office furniture | C146: =ROUND('[7]2 - Capex'!$B$114,0) -> 14514 | D146: ='[6]31-BS1 NA'!$I$28 -> 18170 | E146: 0.2518947223
B147: Equity raising costs | C147: =ROUND('[7]2 - Capex'!$B$115,0) -> 0 | D147: 0
B148: Work in Progress (net) | C148: 0 | D148: =D89-SUM(D139:D147) -> -16362 | E148: =(D148-C148)/C148 -> 
B149: Sub-total | C149: =SUM(C139:C148) -> 94867 | D149: =SUM(D139:D148) -> 79153 | E149: -0.1656424257
B150: Total (system and non system) | C150: =C137+C149 -> 349984 | D150: =D137+D149 -> 309243 | E150: -0.1164081787
B152: Table 4: Alternative Control Services - Metering
B154: SA Power Networks' comments in relation to Table 4
B155: Capital expenditure has been allocated to alternative control services in accordance with SA Power Networks'
B156: Cost Allocation Method.
B158: The forecast value has been escalated to nominal by a CPI adjustment of 12.18%, reflecting the change in the index for the 5-year
B159: period ended 31 March 2015.
C161: Forecast | D161: Actuals | E161: Difference
B162: Alternative Control Services - Metering | C162: $'000 nominal | D162: $'000 nominal
B163: Metering | C163: =ROUND('[7]2 - Capex'!$B$430,0) -> 13051 | D163: ='[6]33-BS2 NA'!$D$13 -> 4315 | E163: =(D163-C163)/C163 -> -0.6693739943
B165: Table 5: Other
B167: SA Power Networks' comments in relation to Table 5
B168: Capital expenditure has been allocated to negotiated services and unregulated services in accordance with SA Power Networks'
B169: Cost Allocation Method.
B171: The reported values are inclusive of the change in WIP balance, but excluding Capital Contributions.
C173: Actuals
B174: Other | C174: $'000 nominal
B175: Negotiated Services - Public Lighting | C175: =SUM('[6]35-BS3 NA'!$E$13:$F$14) -> 3265
B176: Negotiated Services - Other | C176: =SUM('[6]35-BS3 NA'!$D$13:$D$14) -> 2756
B177: Unregulated Services | C177: ='[6]28-CAPEX'!$G$49 -> 2800
B179: Table 6: Related Party Transactions
B180: Note: list items which are more than 5 per cent of the total standard control or alternative control capex, respectively.
B182: SA Power Networks' comment in relation to Table 6
B183: There are no capital related party transactions disclosed, as there are no items meeting the 5% materiality threshold.
B185: Related Party | C185: Description of related party transaction | G185: Total capex attributable to related party transaction $'000 nominal
B190: Total related party transaction costs | G190: =SUM(G186:G189) -> 0
B192: Table 7: Capital Contributions by Asset Class
C194: Forecast | D194: Actual
B195: System assets | C195: $'000 nominal | D195: $'000 nominal
B196: System assets
B197: Sub-transmission lines
B198: Distribution lines
B199: Substations
B200: Distribution transformers
B201: LVS
B202: Communications
B203: Capital Contributions
B204: Substation Land
B205: Work in Progress (net)
B206: Sub-total | C206: =SUM(C196:C205) -> 0 | D206: =SUM(D196:D205) -> 0
B207: Non-System Assets
B208: Buildings
B209: Land
B210: Easements
B211: Heavy vehicles
B212: Light vehicles
B213: IT
B214: Office equipment
B215: Plant & tools/office furniture
B216: Equity raising costs
B217: Work in Progress (net)
B218: Sub-total | C218: =SUM(C212:C217) -> 0 | D218: =SUM(D212:D217) -> 0
B219: Total (system and non system) | C219: =C206+C218 -> 0 | D219: =D206+D218 -> 0
B221: Table 8: Disposals by Asset Class
B223: SA Power Networks' comments in relation to Table 8
B225: The forecast value has been escalated to nominal by a CPI adjustment of 12.18%, reflecting the change in the index for the 5-year
B226: period ended 31 March 2015.
B228: The Disposals value reflects gross proceeds income from the sale of assets, consistent with the methodology adopted in
B229: SA Power Networks' regulatory submission forecasts.
C231: Forecast | D231: Actual
B232: System assets | C232: $'000 nominal | D232: $'000 nominal
B233: Sub-transmission lines
B234: Distribution lines
B235: Substations
B236: Distribution transformers
B237: LVS
B238: Communications
B239: Capital Contributions
B240: Substation Land
B241: Work in Progress (net)
B242: Sub-total | C242: =SUM(C233:C241) -> 0 | D242: =SUM(D233:D241) -> 0
B243: Non-System Assets
B244: Buildings
B245: Land
B246: Easements
... 9 more rows

Sheet 7. Capex for tax dep'n
B1: =Cover!C22 -> SA Power Networks
B2: Capex for tax depreciation
B3: =Cover!C26 -> 2014-15
B5: This information will be used to allow the roll forward of the regulated asset base.
B7: Table 1: Tax standard lives and capex additions - Standard Control Services
B9: SA Power Networks' comment in relation to Table 1
B10: The Tax standard lives in the table are those contained in the file tiled "ETSA Utilities PTRM
B11: revocation and substitution - February 2012", which is accessible via the AER's website.
B13: Asset class | E13: Tax standard lives | F13: Capex additions
B14: ='5. Capex'!B127 -> System assets
B15: ='5. Capex'!B128 -> Sub-transmission lines | E15: 47.5 | F15: ='5. Capex'!D128 -> 16234
B16: ='5. Capex'!B129 -> Distribution lines | E16: 47.5 | F16: ='5. Capex'!D129 -> 74196
B17: ='5. Capex'!B130 -> Substations | E17: 40 | F17: ='5. Capex'!D130 -> 82486
B18: ='5. Capex'!B131 -> Distribution transformers | E18: 40 | F18: ='5. Capex'!D131 -> 10131
B19: ='5. Capex'!B132 -> LVS | E19: 47.5 | F19: ='5. Capex'!D132 -> 66339
B20: ='5. Capex'!B133 -> Communications | E20: 10 | F20: ='5. Capex'!D133 -> 12014
B21: ='5. Capex'!B134 -> Capital Contributions | E21: N/A | F21: ='5. Capex'!D134 -> -65594
B22: ='5. Capex'!B135 -> Substation Land | E22: N/A | F22: ='5. Capex'!D135 -> 461
B23: ='5. Capex'!B136 -> Work in Progress (net) | E23: N/A | F23: ='5. Capex'!D136 -> 33823
B24: ='5. Capex'!B137 -> Sub-total | F24: =SUM(F15:F23) -> 230090
B25: ='5. Capex'!B138 -> Non-System Assets
B26: ='5. Capex'!B139 -> Buildings | E26: 40 | F26: ='5. Capex'!D139 -> 0
B27: ='5. Capex'!B140 -> Land | E27: N/A | F27: ='5. Capex'!D140 -> 249
B28: ='5. Capex'!B141 -> Easements | E28: N/A | F28: ='5. Capex'!D141 -> 914
B29: ='5. Capex'!B142 -> Heavy vehicles | E29: 15 | F29: ='5. Capex'!D142 -> 17918
B30: ='5. Capex'!B143 -> Light vehicles | E30: 6.7 | F30: ='5. Capex'!D143 -> 5855
B31: ='5. Capex'!B144 -> IT | E31: 4 | F31: ='5. Capex'!D144 -> 52409
B32: ='5. Capex'!B145 -> Office equipment | E32: N/A | F32: ='5. Capex'!D145 -> 0
B33: ='5. Capex'!B146 -> Plant & tools/office furniture | E33: 10 | F33: ='5. Capex'!D146 -> 18170
B34: ='5. Capex'!B147 -> Equity raising costs | E34: 5 | F34: ='5. Capex'!D147 -> 0
B35: ='5. Capex'!B148 -> Work in Progress (net) | E35: N/A | F35: ='5. Capex'!D148 -> -16362
B36: ='5. Capex'!B149 -> Sub-total | F36: =SUM(F26:F35) -> 79153
B37: ='5. Capex'!B150 -> Total (system and non system) | F37: =F24+F36 -> 309243

Sheet 8. Maintenance
B1: =Cover!C22 -> SA Power Networks
B2: Network maintenance (including overheads)
B3: =Cover!C26 -> 2014-15
B5: This information is necessary for monitoring maintenance expenditure and will be used to inform the AER's assessment of maintenance expenditure and its underlying drivers at the next reset. It will also be used to assist in any comparative analysis undertaken by the AER within the current and future regulatory control periods.
B7: Table 1: Network maintenance expenditure by category
B9: SA Power Networks' comments in relation to Table 1
B10: Network maintenance expenditure has been allocated to the standard control services, alternative control services, negotiated distribution services and unregulated services
B11: in accordance with SA Power Networks' Cost Allocation Method.
B13: Forecast values have been escalated to nominal by a CPI adjustment of 12.18%, reflecting the change in the index for the 5-year period ended 31 March 2015.
B14: The forecast for Vegetation management has been amended to include the AER's approved 'Vegetation clearance pass through - July 2013'. The adjustment amount was
B15: $9.3M (including CPI adjustment).
B17: The forecast value relating to Superannuation in the AER's Final Determination has been re-allocated based on pro-rata forecast labour by expenditure category.
B18: This is in order to replicate the actual distribution of these superannuation costs by expenditure category.
B20: As defined in the AER's RIN, the Distribution business column represents the total of standard control services, alternative control services and negotiated distribution services.
B21: The Adjustments column represents the exclusion of unregulated services from the Audited statutory accounts totals and includes regulatory adjustments in order to derive the
B22: totals for the Distribution business.
B24: The total of the Audited statutory accounts column reconciles to the Maintenance total in the Income Statement (Template 1).
B26: Statutory Account code or reference to account code | C26: Description | D26: Audited statutory accounts | E26: Adjustments | F26: Distribution business | G26: Standard control services | J26: Alternative control services | K26: Negotiated services | L26: Unregulated services
G27: Forecast | H27: Actual | I27: Difference | J27: Metering
C28: Network maintenance (NM) costs | D28: $'000 nominal | E28: $'000 nominal | F28: $'000 nominal | G28: $'000 nominal | H28: $'000 nominal | J28: $'000 nominal | K28: $'000 nominal | L28: $'000 nominal
C29: Inspection | D29: =SUM(E29:F29) -> 14446 | F29: =SUM(H29,J29:K29) -> 14446 | G29: =ROUND('[5]2014-15 Actual'!$H$74,0) -> 13304 | H29: ='[6]20-O&Ma'!$D$23 -> 14446 | I29: =(H29-G29)/G29 -> 0.08583884546
C30: Maintenance & repair | D30: =SUM(E30:F30) -> 17231 | F30: =SUM(H30,J30:K30) -> 17231 | G30: =ROUND('[5]2014-15 Actual'!$H$75,0) -> 15759 | H30: ='[6]20-O&Ma'!$D$24 -> 15126 | I30: =(H30-G30)/G30 -> -0.04016752332 | J30: ='[6]20-O&Ma'!$E$32 -> 1093 | K30: ='[6]20-O&Ma'!$F$33 -> 1012
C31: Substation property maintenance | D31: 7514 | E31: =-'[6]20-O&Ma'!$D$90 -> 125 | F31: 7389 | G31: =ROUND('[5]2014-15 Actual'!$H$76,0) -> 5025 | H31: ='[6]20-O&Ma'!$D$25 -> 7389 | I31: 0.4704477612
C32: Vegetation management | D32: 46802 | F32: 46802 | G32: =ROUND('[5]2014-15 Actual'!$H$77,0) -> 31885 | H32: ='[6]20-O&Ma'!$D$26 -> 46802 | I32: 0.4678375412
C33: Emergency response | D33: 32849 | F33: 32849 | G33: =ROUND('[5]2014-15 Actual'!$H$78,0) -> 36138 | H33: ='[6]20-O&Ma'!$D$27 -> 32849 | I33: -0.09101223089
C34: Demand management | D34: 171 | E34: =-'[6]20-O&Ma'!$D$94-E35 -> -722 | F34: 893 | G34: =ROUND('[5]2014-15 Actual'!$H$79,0) -> 828 | H34: ='[6]20-O&Ma'!$D$28 -> 893 | I34: 0.07850241546
C35: Demand Management Innovation Fund | D35: 990 | E35: -787 | F35: 1777 | G35: =ROUND('[5]2014-15 Actual'!$H$80,0) -> 672 | H35: ='[6]20-O&Ma'!$D$29 -> 1777 | I35: 1.644345238
C36: Guaranteed Service Level Payments | D36: 3714 | F36: 3714 | G36: =ROUND('[5]2014-15 Actual'!$H$81,0) -> 990 | H36: ='[6]20-O&Ma'!$D$30 -> 3714 | I36: 2.751515152
C37: Network insurance | D37: 2646 | F37: 2646 | G37: =ROUND('[5]2014-15 Actual'!$H$82,0) -> 3329 | H37: ='[6]20-O&Ma'!$D$31 -> 2646 | I37: -0.2051667167
C38: Other network maintenance costs (itemise in table 3) | D38: 0 | F38: 0 | G38: 0 | H38: 0
C39: Total | D39: =SUM(D29:D38) -> 126363 | E39: -1384 | F39: 127747 | G39: 107930 | H39: 125642 | I39: 0.1641063652 | J39: 1093 | K39: =SUM(K29:K38) -> 1012 | L39: 0
B41: Table 2: Explanation of material difference
B43: Note: all material differences identified in table 1 are to be explained in table 2.
B45: Category | C45: Explanation
B46: Substation property maintenance | C46: Higher expenditure for the year reflects SA Power Networks' strategic focus on maintaining the condition of our substation properties.
B47: Vegetation management | C47: Higher than forecast expenditure reflects a change in the profile of works, particularly in Non-Bushfire Risk Areas, that was necessary in order for SA Power Networks to achieve full legislative compliance by 30 June 2015.
B48: Demand Management Innovation Fund | C48: Following the completion of the ESCOSA demand management program, focus in the last two years of the Regulatory Control Period shifted to the specific project trials earmarked for the total $3.1 million of funding available under the AER's DMIS. This resulted in expenditure being higher than forecast in both 2013/14 and 2014/15.
B49: Guaranteed Service Level Payments | C49: GSL payments were once again significantly above the forecast level of $1 million, which is far below the level needed to cover payments incurred in an average year. Duration GSL payments for outages caused by three major weather events in the current year contributed $1.5 million to expenditure. It should be noted that SA Power Networks is required to make GSL payments on MED days, unlike some other jurisdictions.
B50: Network insurance | C50: Expenditure was below forecast in the current year primarily due to insurance policy outcomes being more favourable than had been forecast in our 2010-15 regulatory submission. Total expenditure over the Regulatory Control Period was materially in line with forecast.
B52: Table 3: Other network maintenance overhead costs
B54: Note: list items which are more than 5 per cent of the total standard control or alternative control network maintenance costs
B56: SA Power Networks' comment in relation to Table 3
B57: Not applicable. There is a nil value reported against this item in Table 1.
B59: Statutory account code or reference to account code | C59: Description | D59: Audited statutory accounts | E59: Adjustments | F59: Distribution business
D60: $'000 nominal | E60: $'000 nominal | F60: $'000 nominal
B68: Table 4: Related party transactions
B70: Note: list items which are more than 5 per cent of the total standard control or alternative control network maintenance costs
B72: SA Power Networks' comment in relation to Table 4
B73: There are no network maintenance related party transactions disclosed, as there are no items meeting the 5% materiality
B74: threshold.
B76: Related party | C76: Description of related party transaction | G76: Total maintenance expenditure attributable to related party transaction
C81: Total related party transactions maintenance expenditure | G81: =SUM(G77:J80) -> 0

Sheet 10. Operating costs
B1: =Cover!C22 -> SA Power Networks
B2: Network operating (costs including overheads)
B3: =Cover!C26 -> 2014-15
B5: This information is necessary for monitoring operating costs, and will be used to inform the AER’s assessment of operating costs and its underlying drivers at the next reset. It will also be used to assist in any comparative analysis undertaken by the AER within the current and future regulatory control periods.
B7: Table 1: Operating expenditure - network operation costs
B9: SA Power Networks' comments in relation to Table 1
B10: Network operating expenditure has been allocated to the standard control services, alternative control services, negotiated distribution services and unregulated services
B11: in accordance with SA Power Networks' Cost Allocation Method.
B13: Forecast values have been escalated to nominal by a CPI adjustment of 12.18%, reflecting the change in the index for the 5-year period ended 31 March 2015.
B15: The forecast value relating to Superannuation in the AER's Final Determination has been re-allocated based on pro-rata forecast labour by expenditure category.
B16: This is in order to replicate the actual distribution of these superannuation costs by expenditure category.
B18: As defined in the AER's RIN, the Distribution business column represents the total of standard control services, alternative control services and negotiated distribution services.
B19: The Adjustments column represents the exclusion of unregulated services from the Audited statutory accounts totals and includes regulatory adjustments in order to derive the
B20: totals for the Distribution business.
B22: Self insurance forecast and actual values (included in the Other Allocated Costs line) are reported in accordance with the AER's definition of self insurance events.
B24: The total of the Audited statutory accounts column reconciles to the Operating expenses total in the Income Statement (Template 1).
B26: Statutory Account code or reference to account code | C26: Description | D26: Audited statutory accounts | E26: Adjustments | F26: Distribution business | G26: Standard control services | J26: Alternative control services | K26: Negotiated services | L26: Unregulated services
G27: Forecast | H27: Actual | I27: Difference | J27: Metering
C28: Network Operating Costs | D28: $'000 nominal | E28: $'000 nominal | F28: $'000 nominal | G28: $'000 nominal | H28: $'000 nominal | J28: $'000 nominal | K28: $'000 nominal | L28: $'000 nominal
C29: Distribution licence fee | D29: =SUM(E29:F29) -> 3327 | F29: =SUM(H29,J29:K29) -> 3327 | G29: =ROUND('[5]2014-15 Actual'!$H$65,0) -> 4053 | H29: ='[6]20-O&Ma'!$D$13 -> 3327 | I29: =(H29-G29)/G29 -> -0.1791265729
C30: Network access, monitoring and control | D30: =SUM(E30:F30) -> 9265 | F30: =SUM(H30,J30:K30) -> 9265 | G30: =ROUND('[5]2014-15 Actual'!$H$66,0) -> 8686 | H30: ='[6]20-O&Ma'!$D$14 -> 9265 | I30: 0.06665899148
C31: Network asset management | D31: 5182 | F31: 5182 | G31: =ROUND('[5]2014-15 Actual'!$H$67,0) -> 6346 | H31: ='[6]20-O&Ma'!$D$15 -> 5182 | I31: -0.1834226284
C32: Network asset systems and information | D32: 3530 | F32: 3530 | G32: =ROUND('[5]2014-15 Actual'!$H$68,0) -> 4688 | H32: ='[6]20-O&Ma'!$D$16 -> 3530 | I32: -0.2470136519
C33: Network telephony | D33: 5861 | F33: 5861 | G33: =ROUND('[5]2014-15 Actual'!$H$69,0) -> 9086 | H33: ='[6]20-O&Ma'!$D$17 -> 5861 | I33: -0.3549416685
C34: Regulatory compliance | D34: 3369 | F34: 3369 | G34: =ROUND('[5]2014-15 Actual'!$H$70,0) -> 2987 | H34: ='[6]20-O&Ma'!$D$18 -> 3369 | I34: 0.1278875126
C35: Other network operating costs (itemise in table 3 below) | D35: 0 | F35: 0 | G35: 0 | H35: 0
C36: Sub-total | D36: =SUM(D29:D35) -> 30534 | E36: =SUM(E29:E35) -> 0 | F36: =SUM(F29:F35) -> 30534 | G36: =SUM(G29:G35) -> 35846 | H36: =SUM(H29:H35) -> 30534 | I36: =(H36-G36)/G36 -> -0.1481894772 | J36: =SUM(J29:J35) -> 0 | K36: =SUM(K29:K35) -> 0 | L36: =SUM(L29:L35) -> 0
C37: Customer Services
C38: Meter reading | D38: =SUM(E38:F38) -> 4066 | F38: =SUM(H38,J38:K38) -> 4066 | I38: =(H38-G38)/G38 ->  | J38: ='[6]20-O&Ma'!$E$40 -> 3567 | K38: ='[6]20-O&Ma'!$F$43 -> 499
C39: Call centre | D39: =SUM(E39:F39) -> 3159 | F39: =SUM(H39,J39:K39) -> 3159 | G39: =ROUND('[5]2014-15 Actual'!$H$86,0) -> 2803 | H39: ='[6]20-O&Ma'!$D$38 -> 3159 | I39: =(H39-G39)/G39 -> 0.1270067785
C40: Full retail contestability | D40: =SUM(E40:F40) -> 17341 | F40: =SUM(H40,J40:K40) -> 17341 | G40: =ROUND('[5]2014-15 Actual'!$H$87,0) -> 17350 | H40: ='[6]20-O&Ma'!$D$39 -> 17341 | I40: =(H40-G40)/G40 -> -0.0005187319885
C41: Other customer services (itemise in table 3 below) | D41: =SUM(E41:F41) -> 20814 | F41: =SUM(H41,J41:K41) -> 20814 | G41: =ROUND('[5]2014-15 Actual'!$H$88,0) -> 6208 | H41: ='[6]20-O&Ma'!$D$71 -> 6435 | I41: =(H41-G41)/G41 -> 0.03656572165 | J41: ='[6]20-O&Ma'!$E$71 -> 143 | K41: ='[6]20-O&Ma'!$F$71+'[6]20-O&Ma'!$F$41+'[6]20-O&Ma'!$F$42 -> 14236
C42: Sub-total | D42: =SUM(D38:D41) -> 45380 | E42: =SUM(E38:E41) -> 0 | F42: 45380 | G42: 26361 | H42: 26935 | I42: =(H42-G42)/G42 -> 0.02177459125 | J42: 3710 | K42: =SUM(K38:K41) -> 14735 | L42: 0
C43: Allocated costs
C44: CEO, planning & audit | D44: =SUM(E44:F44) -> 3949 | E44: =L44 -> 274 | F44: =SUM(H44,J44:K44) -> 3675 | G44: =ROUND('[5]2014-15 Actual'!$H$92,0) -> 2788 | H44: ='[6]20-O&Ma'!$D$63 -> 3424 | I44: =(H44-G44)/G44 -> 0.2281205165 | J44: ='[6]20-O&Ma'!$E$63 -> 54 | K44: ='[6]20-O&Ma'!$F$63 -> 197 | L44: ='[6]20-O&Ma'!$G$63 -> 274
C45: Communications | D45: =SUM(E45:F45) -> 2146 | F45: =SUM(H45,J45:K45) -> 2146 | G45: =ROUND('[5]2014-15 Actual'!$H$93,0) -> 2127 | H45: ='[6]20-O&Ma'!$D$64 -> 1949 | I45: -0.08368594264 | J45: ='[6]20-O&Ma'!$E$64 -> 45 | K45: ='[6]20-O&Ma'!$F$64 -> 152 | L45: ='[6]20-O&Ma'!$G$64 -> 0
C46: Regulation and company secretary | D46: 8751 | E46: =L46 -> 81 | F46: 8670 | G46: =ROUND('[5]2014-15 Actual'!$H$94,0) -> 4137 | H46: ='[6]20-O&Ma'!$D$65 -> 8090 | I46: 0.9555233261 | J46: ='[6]20-O&Ma'!$E$65 -> 122 | K46: ='[6]20-O&Ma'!$F$65 -> 458 | L46: ='[6]20-O&Ma'!$G$65 -> 81
C47: Finance | D47: 30684 | E47: 4909 | F47: 25775 | G47: =ROUND('[5]2014-15 Actual'!$H$105,0) -> 12554 | H47: ='[6]20-O&Ma'!$D$66+'[6]20-O&Ma'!$D$51+'[6]20-O&Ma'!$D$52 -> 23407 | I47: 0.8645053369 | J47: ='[6]20-O&Ma'!$E$66 -> 457 | K47: ='[6]20-O&Ma'!$F$66 -> 1911 | L47: ='[6]20-O&Ma'!$G$66 -> 4909
C48: HR and training | D48: 11619 | E48: 1114 | F48: 10505 | G48: =ROUND('[5]2014-15 Actual'!$H$108,0) -> 10331 | H48: ='[6]20-O&Ma'!$D$67+'[6]20-O&Ma'!$D$53 -> 9693 | I48: -0.06175588036 | J48: ='[6]20-O&Ma'!$E$67 -> 93 | K48: ='[6]20-O&Ma'!$F$67 -> 719 | L48: ='[6]20-O&Ma'!$G$67 -> 1114
C49: Property | D49: 7553 | E49: 891 | F49: 6662 | G49: =ROUND('[5]2014-15 Actual'!$H$109,0) -> 8975 | H49: ='[6]20-O&Ma'!$D$68+'[6]20-O&Ma'!$D$50 -> 6333 | I49: -0.2943732591 | J49: ='[6]20-O&Ma'!$E$68 -> 37 | K49: ='[6]20-O&Ma'!$F$68 -> 292 | L49: ='[6]20-O&Ma'!$G$68 -> 891
C50: Information systems | D50: =SUM(E50:F50) -> 14613 | E50: =L50 -> 1686 | F50: =SUM(H50,J50:K50) -> 12927 | G50: =ROUND('[5]2014-15 Actual'!$H$110,0) -> 15143 | H50: ='[6]20-O&Ma'!$D$69 -> 11921 | I50: -0.2127715776 | J50: ='[6]20-O&Ma'!$E$69 -> 115 | K50: ='[6]20-O&Ma'!$F$69 -> 891 | L50: ='[6]20-O&Ma'!$G$69 -> 1686
C51: Risk management | D51: 8414 | E51: 474 | F51: 7940 | G51: =ROUND('[5]2014-15 Actual'!$H$111,0) -> 12878 | H51: ='[6]20-O&Ma'!$D$70 -> 7537 | I51: -0.4147383134 | J51: ='[6]20-O&Ma'!$E$70 -> 57 | K51: ='[6]20-O&Ma'!$F$70 -> 346 | L51: ='[6]20-O&Ma'!$G$70 -> 474
C52: Other Allocated Costs (itemise in table 3 below) | D52: -47384 | E52: =L52-'[6]20-O&Ma'!$I$93-'[6]20-O&Ma'!$I$95-'[6]20-O&Ma'!$I$96 -> -39218 | F52: =SUM(H52,J52:K52) -> -8166 | G52: =(ROUND('[5]2014-15 Actual'!$H$115,0)+(ROUND('[5]2014-15 Actual'!$H$116,0))) -> 1537 | H52: ='[6]20-O&Ma'!$D$81 -> -6474 | I52: -5.212101496 | J52: ='[6]20-O&Ma'!$E$81 -> -132 | K52: ='[6]20-O&Ma'!$F$81 -> -1560 | L52: ='[6]20-O&Ma'!$G$81 -> -6670
C53: Sub-total | D53: =SUM(D44:D52) -> 40345 | E53: =SUM(E44:E52) -> -29789 | F53: =SUM(F44:F52) -> 70134 | G53: 70470 | H53: 65880 | I53: =(H53-G53)/G53 -> -0.06513409962 | J53: 848 | K53: =SUM(K44:K52) -> 3406 | L53: 2759
C54: Other
C55: Other network operation costs (itemise in table 3 below) | D55: =SUM(E55:F55) -> 148435 | E55: =L55-'[6]20-O&Ma'!$I$91-'[6]20-O&Ma'!$I$92-'[6]20-O&Ma'!$I$99 -> 64496 | F55: =SUM(H55,J55:K55) -> 83939 | G55: =ROUND('[5]2014-15 Actual'!$H$117,0) -> 2132 | H55: ='[6]20-O&Ma'!$D$49 -> 1868 | I55: =(H55-G55)/G55 -> -0.1238273921 | K55: ='[6]20-O&Ma'!$F$54 -> 82071 | L55: ='[6]20-O&Ma'!$G$54 -> 137078
C56: Sub-total | D56: =SUM(D55:D55) -> 148435 | E56: =SUM(E55:E55) -> 64496 | F56: 83939 | G56: 2132 | H56: 1868 | I56: =(H56-G56)/G56 -> -0.1238273921 | J56: 0 | K56: 82071 | L56: 137078
C57: Total | D57: =SUM(D36,D42,D53,D56) -> 264694 | E57: =SUM(E36,E42,E53,E56) -> 34707 | F57: 229987 | G57: 134809 | H57: 125217 | I57: =(H57-G57)/G57 -> -0.07115251949 | J57: 4558 | K57: =SUM(K36,K42,K53,K56) -> 100212 | L57: 139837
B59: Table 2: Explanation of material difference
B61: Note: all material differences identified in table 1 are to be explained in table 2.
B63: Category | C63: Explanation
B64: Distribution licence fee | C64: The Distribution licence fee has remained constant in nominal dollars over the regulatory period, whereas the forecasts assumed an annual CPI increase.
B65: Network asset management | C65: Asset management capabilities continue to develop, however some resources and associated expenditure have been re-deployed into the Inspections area to assist with addressing high asset inspection workloads and capturing detailed asset data as part of the process.
B66: Network asset systems and information | C66: Although there has been a significant ramp-up of work in this area, the additional resources and associated expenditure are generally being assigned directly to capital projects requiring that information (e.g. the SCADA / DMS project), such that operating expenditure has been lower than was anticipated at the time of our regulatory submission.
B67: Network telephony | C67: Actual costs have continued to increase in this area year on year, however not at the levels anticipated in the forecast, largely due to the achievement of substantial contract savings through the regulatory period.
B68: Regulatory compliance | C68: Expenditure is higher than forecast reflecting the diversion of some resources in order to address the changing regulatory framework and more onerous reporting requirements.
B69: Call centre | C69: Expenditure under the service level agreement has been higher than forecast at the time of our regulatory submission in order to meet customer service demands.
B70: CEO, planning & audit | C70: Higher than forecast expenditure in the current year is predominantly due to higher than anticipated external audit fees in order to meet the AER's additional reporting requirements.
B71: Regulation and company secretary | C71: Expenditure was above forecast due to an increase in resources deployed to the Regulation group to prepare the 2015-20 Regulatory Proposals (Original and Revised), to respond to AER enquiries and to meet the increasing regulatory information requirements resulting from AER benchmarking RINs.
B72: Finance | C72: There are three main factors driving the increased expenditure in this area, being: An increase to the long service leave provision under Actuarial advice (note that any changes to leave provsions to the business are reported against Finance); the transfer of resources and costs from other operational business units resulting from an organisational realignment which has occurred since the 2010-15 regulatory determination; and payments for Voluntary Separation Packages to improve operational efficiency that were not in the forecast.
B73: Property | C73: Delays in acquiring and developing some new properties continue to have an associated flow-on effect to anticipated operational costs associated with those properties.
B74: Information systems | C74: Reduced costs in the current year are associated with some resources having been re-deployed from operational to capital activities in order to meet the substantial ramp-up in IT capital projects.
B75: Risk management | C75: Expenditure remains below forecast due primarily to insurance policy outcomes to date having been more favourable during the period than had been anticipated in our regulatory determination.
B76: Other Allocated Costs | C76: This line item represents forecast and actual data for Self Insurance and the actual regulatory adjustment for Superannuation. In accordance with SA Power Networks' approved Cost Allocation Method, both Self Insurance and Superannuation are reported on the basis of cash payments rather than the accounting expense. Due to the difficulty associated with forecasting cash payments for these items in any given year, it is not unexpected that the actual expenditure will vary from forecast.
B77: Other network operation costs | C77: This line item pertains to Debt Raising Costs. Actual costs have fallen due to interest rates having been lower than forecast.
B79: Table 3: Other network operation overhead costs
B81: Note: list items which are more than 5 per cent of the total standard control or alternative control network operating costs
B83: Statutory Account code or reference to account code | C83: Description | D83: Audited statutory accounts | E83: Adjustments | F83: Distribution business
D84: $'000 nominal | E84: $'000 nominal | F84: $'000 nominal
C85: Other customer services
C86: Customer relations | D86: =SUM(E86:F86) -> 7061 | E86: 0 | F86: ='[6]20-O&Ma'!$I$71 -> 7061
B92: Table 4: Related party transactions
B94: Note: list items which are more than 5 per cent of the total standard control or alternative control network operating costs
B96: Statutory Account code or reference to account code | C96: Related Party | D96: Audited statutory accounts | E96: Adjustments | F96: Distribution business | G96: Standard control services | J96: Alternative control services | K96: Negotiated services | L96: Unregulated services
G97: Forecast | H97: Actual | I97: Difference | J97: Metering
D98: $'000 nominal | E98: $'000 nominal | F98: $'000 nominal | G98: $'000 nominal | H98: $'000 nominal | J98: $'000 nominal | K98: $'000 nominal | L98: $'000 nominal
C99: CKI/HEI Electricity Distribution Holdings (Australia) Pty Ltd | D99: =SUM(E99:F99) -> 15185 | E99: =L99 -> 0 | F99: =SUM(H99,J99:K99) -> 15185 | H99: =ROUND('[8]Purchases 2014-15'!$R$154/1000,0) -> 15185 | I99: =(H99-G99)/G99 ->  | J99: 0 | K99: 0 | L99: 0
I100: =(H100-G100)/G100 -> 
B106: Table 5: Operating expenditure - non-recurrent network operating costs
B108: Note: list items which are more than 5 per cent of the total standard control or alternative control network operating costs
B110: SA Power Networks' comment in relation to Table 5
B111: The items reported in the table meet the AER's materiality threshold for change in operating costs from the prior year (adjusted for 1.33% CPI). The Regulation and Company Secretary and
B112: Finance categories incurred an increment greater than 10% to standard control operating costs from the prior year, while the Information Systems category incurred a decrement of
B113: more than 10% to standard control operating costs from the prior year. While SA Power Networks are uncertain as to whether the changes in costs satisfy the AER's definition of
B114: non-recurrent network operating costs (given the nature of the changes in costs and the difficulty in gauging the likelihood of recurrence), it was nonetheles deemed prudent to report them.
B116: Statutory Account code or reference to account code | C116: Description | D116: Audited statutory accounts | E116: Adjustments | F116: Distribution business | G116: Standard control services | J116: Alternative control services | K116: Negotiated services | L116: Unregulated services
G117: Forecast | H117: Actual | I117: Difference | J117: Metering
D118: $'000 nominal | E118: $'000 nominal | F118: $'000 nominal | G118: $'000 nominal | H118: $'000 nominal | J118: $'000 nominal | K118: $'000 nominal | L118: $'000 nominal
C119: Regulation and company secretary | D119: =SUM(E119:F119) -> 8751 | E119: =L119 -> 81 | F119: =SUM(H119,J119:K119) -> 8670 | H119: =H46 -> 8090 | I119: =(H119-G119)/G119 ->  | J119: =J46 -> 122 | K119: 458 | L119: 81
C120: Finance | D120: =SUM(E120:F120) -> 30684 | E120: =L120 -> 4909 | F120: =SUM(H120,J120:K120) -> 25775 | H120: =H47 -> 23407 | I120: =(H120-G120)/G120 ->  | J120: 457 | K120: 1911 | L120: 4909
C121: Information systems | D121: =SUM(E121:F121) -> 14613 | E121: =L121 -> 1686 | F121: =SUM(H121,J121:K121) -> 12927 | H121: =H50 -> 11921 | I121: =(H121-G121)/G121 ->  | J121: =J50 -> 115 | K121: 891 | L121: 1686
I122: =(H122-G122)/G122 -> 
B126: Table 6: Non–network alternatives (demand management) operating costs that are not captured by the DMIS ($ nominal)
B128: SA Power Networks' comment in relation to Table 6
B129: Not applicable. There are no non-network alternative projects outside of the DMIS to report for the 2014-15 regulatory year.
B131: Statutory Account code or reference to account code | C131: Name of project | D131: Aims/goals of project | G131: Impact on demand (MW) | H131: Impact on demand (MW) | I131: Deferred capital costs from DM project ($ 000s nominal) | J131: Deferred capital costs from DM project ($ 000s nominal)
G132: Current year impact | H132: Whole of project life impact | I132: Current year impact | J132: Whole of project life impact
C136: Total | G136: 0 | H136: 0 | I136: 0 | J136: 0

Sheet 16. Avoided cost payments
B1: =Cover!C22 -> SA Power Networks
B2: Avoided Cost Payments
B3: =Cover!C26 -> 2014-15
B5: This information is necessary for monitoring avoided cost payments, and will be used to inform the AER’s assessment of expenditure and its underlying drivers at the next reset. It will also be used to assist in any comparative analysis undertaken by the AER within the current and future regulatory control periods.
B7: Table 1: Avoided cost payments
B9: SA Power Networks' comments in relation to Table 1:
B10: In an email dated 17/9/13, the AER advised that the definition of Avoided Cost Payments in
B11: the RIN was inappropriate for what they require to be reported. The AER advised that the
B12: correct definition is "Payments made in accordance with clause 5.5(h) of the NER."
B14: SA Power Networks reports that there were no payments made in the current year under
B15: clause 5.5(h) of the NER..
B17: Statutory Account code or reference to account code | C17: Description | D17: Avoided cost payment ($'000 nominal)
C18: Embedded generators | D18: 0
C19: Avoided TUOS | D19: 0
C20: Other | D20: 0
C21: Total | D21: =SUM(D18:D20) -> 0

Sheet 17. Altern Ctl & other
B1: =Cover!C22 -> SA Power Networks
B2: Alternative Control and Other Services
B3: =Cover!C26 -> 2014-15
B5: This information is necessary for monitoring Alternative control & other services, and will be used to inform the AER’s assessment of expenditure and its underlying drivers at the next reset. It will also be used to assist in any comparative analysis undertaken by the AER within the current and future regulatory control periods.
B7: Table 1: Alternative control and other services
B9: SA Power Networks' comment in relation to Table 1:
B10: SA Power Networks systems do not capture financial Metering information split in accordance with the requested categories.
B11: The values shown in the Total line for Metering relate to all Metering classified as an Alternative Control Service.
B13: Statutory Account code or reference to account code | C13: Description | D13: Direct O&M Costs | E13: Indirect O&M costs | F13: Direct capex | G13: Indirect capex | H13: Total expenditure | I13: Revenue
C14: Metering | D14: $'000 nominal | E14: $'000 nominal | F14: $'000 nominal | G14: $'000 nominal | H14: $'000 nominal | I14: $'000 nominal
C15: ‘Variable’ ‘standard’ ‘small’ customer metering services
C16: Exceptional large customer metering services
C17: Total | D17: ='[6]20-O&Ma'!$E$58 -> 4660 | E17: ='[6]20-O&Ma'!$E$83 -> 991 | F17: ='[6]28-CAPEX'!$E$51 -> 4315 | G17: 0 | H17: =SUM(D17:G17) -> 9966 | I17: ='1. Income'!H45 -> 27408
C18: Other Activites - Unregulated
C19: Negotiated services | D19: ='[6]20-O&Ma'!$F$58 -> 97335 | E19: ='[6]20-O&Ma'!$F$83 -> 3889 | F19: ='[6]28-CAPEX'!$F$51 -> 6021 | G19: 0 | H19: =SUM(D19:G19) -> 107245 | I19: ='1. Income'!I45 -> 122243
C20: Unregulated services | D20: ='[6]20-O&Ma'!$G$58 -> 137078 | E20: ='[6]20-O&Ma'!$G$83 -> 2759 | F20: ='[6]28-CAPEX'!$G$51 -> 2800 | G20: 0 | H20: =SUM(D20:G20) -> 142637 | I20: ='1. Income'!J45 -> 182500
C21: Total unregulated | D21: =SUM(D19:D20) -> 234413 | E21: 6648 | F21: 8821 | G21: 0 | H21: 249882 | I21: 304743
C22: TOTAL | D22: =SUM(D17,D21) -> 239073 | E22: 7639 | F22: 13136 | G22: 0 | H22: 259848 | I22: 332151

Sheet 18. EBSS
B1: =Cover!C22 -> SA Power Networks
B2: Efficiency benefit sharing scheme
B3: =Cover!C26 -> 2014-15
B5: EBSS information is used by the AER to monitor EBSS scheme throughout the regulatory control period.
B7: Table 1: Opex for EBSS purposes
B9: Note: a) Only superannuation costs related to defined benefit schemes are to be reported b) Only self insurance cost categories approved in the AER's determination are to be reported
B11: SA Power Networks' comment in relation to Table 1:
B12: All values relate to standard control services. Please refer to the reference notes to the right of Table 1.
C14: $'000 nominal | D14: References
B15: Total actual opex | C15: ='8. Maintenance'!H39+'10. Operating costs'!H57 -> 250859 | D15: Total opex as per Template 8 Table 1 and Template 10 Table 1.
B16: Debt raising costs | C16: ='10. Operating costs'!H55 -> 1868 | D16: Represents amount reported as Other network operation costs in Template 10 Table 1.
B17: Self insurance | C17: =SUM('[6]20-O&Ma'!$D$77:$D$78) -> 687 | D17: Payments for Self Insurance events in accordance with the AER's definition.
B18: Network Insurance | C18: ='8. Maintenance'!H37 -> 2646 | D18: As per Template 8 Table 1.
B19: Superannuation defined benefit retirement schemes | C19: =-'[6]24-EBSS'!$D$17 -> 834 | D19: Superannuation contributions to defined benefit schemes.
B20: Non network alternatives costs | C20: ='10. Operating costs'!I136 -> 0 | D20: As per Template 10 Table 6 = nil.
B21: DMIA costs | C21: ='8. Maintenance'!H35 -> 1777 | D21: DM innovation fund as per Template 8 Table 1.
B22: Other specific uncontrollable costs | C22: =-'[6]24-EBSS'!$D$19 -> 3 | D22: Adjustment for Opex ECM carryover - per AER Determination Table 13.1.
B23: Pass through event costs | C23: =-'[6]24-EBSS'!$D$21 -> 9253 | D23: Vegetation clearance pass through - July 2013.
B24: Capitalisation policy changes | C24: =(C40) -> 0 | D24: As per Table 2 = nil.
B25: Total opex adjustment for EBSS purposes | C25: =SUM(C16:C24) -> 17068
B26: Total opex for EBSS purposes | C26: =C15-C25 -> 233791
B28: Table 2: Explanation of Capitalisation Policy Changes
B30: Note: this should include a description of any items that have previously been considered as opex items, but are now being considered capex items.
B32: SA Power Networks' comment in relation to Table 2:
B33: Not applicable. There have been no changes to SA Power Networks' Capitalisation Policy in the current year.
B35: Capitalisation policy change | C35: Impact of capitalisation changes on opex forecasts ($'000 nominal) | D35: Description
B40: Total | C40: =SUM(C36:C39) -> 0

Sheet 19. Juris Scheme
B1: =Cover!C22 -> SA Power Networks
B2: Jurisdictional Scheme Payments
B3: =Cover!C26 -> 2014-15
B5: Jurisdictional scheme information is used by the AER to monitor approved Jurisdictional schemes throughout the regulatory control period.
B7: Note: SA Power Networks is only required to complete this worksheet for each approved Jurisdictional Scheme.
B9: Table 1: Jurisdictional Scheme Amounts
B11: Jurisdictional scheme name | C11: Jurisdictional Scheme Amounts ($'000 nominal)
B12: PV Feed In Tariff Paid - 44 cent and 16 cent Schemes | C12: =ROUND(128505591/1000,0) -> 128506
B13: less PV FiT Recovered | C13: =ROUND(-164930847/1000,0) -> -164931
B16: Total jurisdictional scheme amounts | C16: =SUM(C12:C15) -> -36425 | D16: (over-recovered)

Sheet 20. DMIS -DMIA
B1: =Cover!C22 -> SA Power Networks
B2: Demand Management Incentive Scheme
B3: =Cover!C26 -> 2014-15
B5: Part A – DMIA annual report
B7: This information will form the basis of the AER’s assessment of the DNSP’s compliance with the DMIS, and its entitlement to recover expenditure under the DMIS. The information will also assist the AER in assessing proposals for demand management expenditure in opex and capex forecasts submitted in a DNSP’s regulatory proposals, and in the development and implementation of DMEGCIS, in future regulatory control periods.
B9: Table 1: DMIA projects submitted for approval
B11: SA Power Networks' comment in relation to Table 1
B12: For further information in relation to these projects, please refer to the 2014-15 DMIA Report provided as Attachment 6.1(a) to
B13: SA Power Networks' RIN response document.
B15: Total expenditure is as per the Demand Management Innovation Fund category reported in Template 8 Table 1.
B17: Note $366k of the reported $990k total expenditure for the Bordertown Demand Management project represents costs incurred
B18: in the 2013-14 regulatory year that were not shown under DMIA in the 2013-14 Annual RIN, but were reported in error against
B19: the Asset Strategy category of Network Operating Costs in Template 10. This mis-statement had no impact on reported total
B20: expenditure for Standard Control Services. In this 2014-15 report, SA Power Networks has included the amount of $366k in
B21: DMIA expenditure, with an equivalent reduction offset against the Asset Strategy category of Network Operating Costs in
B22: Template 10.
B24: Name of project | C24: Total amount of the DMIA spent
C25: =B3 -> 2014-15
C26: Operating expenditure ($'000 nominal) | D26: Capital expenditure ($'000 nominal) | E26: Total expenditure ($'000 nominal)
B27: DSP Trial 3 (Residential Load Profiles) | C27: 262 | E27: =SUM(C27:D27) -> 262
B28: DM - Bordertown Demand Management | C28: 990 | E28: 990
B29: Grid Side Storage | C29: 287 | E29: 287
B30: Future Network Modelling | C30: 238 | E30: 238
B33: Total | C33: =SUM(C27:C32) -> 1777 | D33: =SUM(D27:D32) -> 0 | E33: =SUM(E27:E32) -> 1777
B35: Table 2: Forgone revenue
B37: SA Power Networks' comment in relation to Table 2
B38: Not applicable. There has not been any revenue foregone to date as a result of SA Power Networks' demand management
B39: initiatives, including those projects sought under the Demand Management Incentive Allowance for 2014-15 (refer Table 1 above).
B40: Therefore, a calculation of forgone revenue is not required.
B42: Name of project | C42: Total
C43: Forecast quantity | D43: Actual quantity | E43: Foregone quantity | F43: Price | G43: Foregone revenue
B44: [Project 1] | E44: 0 | G44: =F44*E44 -> 0
B45: [Project 2] | E45: 0 | G45: 0
B46: [Project 3] | E46: 0 | G46: 0
B47: [Project 4] | E47: 0 | G47: 0
B48: [Project 5] | E48: 0 | G48: 0
B49: [Project 6] | E49: 0 | G49: 0
B50: Total | C50: 0 | D50: 0 | E50: 0 | G50: =SUM(G44:G49) -> 0

Sheet 21. Self insurance
B1: =Cover!C22 -> SA Power Networks
B2: Self insurance
B3: =Cover!C26 -> 2014-15
B5: Information on actual, audited costs incurred by DNSPs on self insurance events (collected annually) will assist the AER with determining an appropriate self insurance allowance for DNSPs at the next regulatory reset. The information is required to be reported annually so that DNSPs can clearly demonstrate (to the AER) that their business processes and reporting systems properly account for self insurance events. This includes correctly accounting for the risks insured and costs to the DNSP.
B7: Table 1: Self insurance events with an incurred cost of greater than $100 000 per event.
B9: SA Power Networks' comments in relation to Table 1:
B10: The costs for the self insurance events in this table are reported on a cash payments basis. This is in accordance with the treatment of self insurance costs in SA Power Networks' Cost Allocation
B11: Method - September 2012 (Refer Section 6.3 Allocated Costs), and is also consistent with the methodology employed in the AER's self insurance forecast determination.
B13: The self insurance events disclosed in this table are those where the incurred cost for the regulatory year exceeded $100,000 per event.
B14: Although the amounts paid for each listed event in the regulatory year was below $100,000, increases in the respective provisions has resulted in the incurred cost for each event
B15: exceeding $100,000 for the year.
B17: Type of self insurance event | C17: Date of event | D17: Description of event | H17: Cost of the event that relates to standard control services | I17: Other costs (eg costs related to unregulated services) | J17: Total cost of self insurance event | K17: Costs covered by external funding | L17: Costs recovered via a pass through mechanism | M17: Is information held that verifies the event?
H18: $'000 nominal | I18: $'000 nominal | J18: $'000 nominal | K18: $'000 nominal | L18: $'000 nominal
B19: Injury | C19: 2002-01-01 | D19: Personal injury due to vehicle accident | H19: =1628/1000 -> 1.628 | I19: 0 | J19: =SUM(H19:I19) -> 1.628 | K19: 0 | L19: 0 | M19: Yes
B20: Fire | C20: 2011-01-30 | D20: House fire | H20: =11426/1000 -> 11.426 | I20: 0 | J20: =SUM(H20:I20) -> 11.426 | K20: 0 | L20: 0 | M20: Yes
B21: Injury | C21: 2011-10-21 | D21: Personal injury to contractor's shoulder | H21: =37648/1000 -> 37.648 | I21: 0 | J21: =SUM(H21:I21) -> 37.648 | K21: 0 | L21: 0 | M21: Yes
B22: Fire | C22: 2011-11-29 | D22: Conductor sparked fire at Gladstone | H22: =15213/1000 -> 15.213 | I22: 0 | J22: =SUM(H22:I22) -> 15.213 | K22: 0 | L22: 0 | M22: Yes
B23: Injury | C23: 2012-02-15 | D23: Personal injury due to pit explosion | H23: =8084/1000 -> 8.084 | I23: 0 | J23: =SUM(H23:I23) -> 8.084 | K23: 0 | L23: 0 | M23: Yes
D27: Total actual cost of self insurance | H27: =SUM(H19:H26) -> 73.999 | I27: =SUM(I19:I26) -> 0 | J27: =SUM(J19:J26) -> 73.999 | K27: =SUM(K19:K26) -> 0 | L27: =SUM(L19:L26) -> 0
B29: Table 2: Self insurance events with an incurred cost of less than $100 000 per event
B31: Number of events | C31: Costs of the events that relate to standard control services | D31: Costs covered by external funding | E31: Costs that do not relate to standard control services
C32: $'000 nominal | D32: $'000 nominal | E32: $'000 nominal
B35: Table 3: Total self insurance costs that relate to standard control services
B37: Total self insurance | D37: =H27+C33 -> 73.999

Sheet 22. CHAP
B1: =Cover!C22 -> SA Power Networks
B2: Change of Accounting Policy
B3: =Cover!C26 -> 2014-15
B5: This information is required by the AER to assess forecast expenditure proposed by DNSPs at their next reset. It captures changes in accounting policies made from year to year and the effect on the Financial Statements. This information will increase transparency and accountability to stakeholders.
B7: Note: a) Only list those items where the adjustment amount for the item meets the materiality threshold applied in ETSA Utilities' statutory financial accounts b) Tables 1 and 2 capture both the changes in the application of accounting standards and changes in the accounting standards themselves.
B9: Table 1: Aggregate effect of the change in accounting policy on the balance sheet and income statements
B11: SA Power Networks' comments in relation to Tables 1 and 2:
B12: In the current year, the SA Power Networks Partnership has adopted all of the new and revised Standards and Interpretations issued by the Australian Accounting
B13: Standards Board (the AASB) that are relevant to its operations and effective for the current regulatory reporting year. The adoption of these new and revised
B14: Standards and Interpretations has resulted in no significant changes to SA Power Networks' accounting policies.
B16: Statutory account code or reference to account code | C16: ETSA Utilities category | D16: Previously stated | E16: Adjustment | F16: Restated
C17: Balance Sheet | D17: ($'000 nominal) | E17: ($'000 nominal) | F17: ($'000 nominal)
C18: <Item> | E18: =F18-D18 -> 0
C19: <Item> | E19: =F19-D19 -> 0
C20: <Item> | E20: =F20-D20 -> 0
C21: Income Statement
C22: <Item> | E22: =F22-D22 -> 0
C23: <Item> | E23: =F23-D23 -> 0
C24: <Item> | E24: =F24-D24 -> 0
B26: Table 2: Reason for the change in accounting policy
B28: Statutory account code or reference to account code | C28: Description of change | D28: Reason for the change of accounting policy | G28: Items impacted
G29: <Item>
G30: <Item>
G31: <Item>
G32: <Item>

Sheet Amendments
B2: Amendments - RIN rationalisation
B4: Information no longer required from Annual Reporting RIN | D4: Reasoning
B5: (workbook/worksheet/table/row-column-cell)
B6: Financial information templates
B7: 2. Balance sheet | C7: Entire worksheet | D7: Redundant Information
B8: 3. Cash flow statement | C8: Entire worksheet | D8: Redundant Information
B9: 4. Changes in Equity | C9: Entire worksheet | D9: Redundant Information
B10: 6. Capex Overheads | C10: Entire worksheet | D10: Information in Category analysis RIN Worksheet 2.10
B11: 9. Maintenance Overheads | C11: Entire worksheet | D11: Information in Category analysis RIN Worksheet 2.10
B12: 11. Operating Overheads | C12: Entire worksheet | D12: Information in Category analysis RIN Worksheet 2.10
B13: 12. Cost categories | C13: Entire worksheet | D13: Information in Category analysis RIN Worksheet 2.12
B14: 13. Opex step changes | C14: Entire worksheet | D14: Information covered in 2012 RIN - Sheets 8 Maintenance, 10 Operating costs via explanation of material differences
B15: 14. Provisions | C15: Entire worksheet | D15: Information in Benchmarking RIN Table 3.3
B16: 15. Overheads allocation | C16: Entire worksheet | D16: Information in Category analysis RIN Worksheet 2.10
